{"text_format":"1","workbook":"xlsx","n_sheets":1,"sheets":["Farmularz informacji cenowej"],"not_rendered":{"charts":0,"images":0,"macros":1,"external_links":0,"defined_names":0,"comments":0,"pivot_tables":0},"unopened":[],"bounds":{"document_bytes":16777216,"sheet_cells":100000,"rows_first":2000,"rows_last":500,"rows_between":2000,"halvings":0,"cell_chars":16384,"cell_head_chars":4096},"cells_cut":0,"cells_raw":0,"read":"whole","date_system":"1900"}

{"sheet":"Farmularz informacji cenowej","index":0,"n_rows":187,"n_cols":9,"rows_kept":187,"cut":false,"hidden":false,"merged":[[67,10,67,11],[44,10,44,11],[183,1,183,2],[36,1,37,1],[38,1,39,1],[39,2,39,4],[169,4,169,5],[170,4,170,5],[171,4,171,5],[168,4,168,5],[131,0,131,7],[104,0,104,4],[37,2,37,4],[161,1,161,4],[36,2,36,4],[38,2,38,4],[30,2,30,4],[66,0,66,6],[89,0,89,6],[128,0,128,3],[154,2,154,3],[35,1,35,4],[17,2,17,4],[18,2,18,4],[20,2,20,4],[21,2,21,4],[23,2,23,4],[26,0,27,0],[113,0,113,6],[102,0,102,3],[29,0,30,0],[20,0,21,0],[68,0,68,8],[45,0,45,8],[43,0,43,8],[92,0,92,4],[32,2,32,4],[33,2,33,4],[32,0,33,0],[24,2,24,4],[26,2,26,4],[27,2,27,4],[29,2,29,4],[169,2,169,3],[90,0,90,7],[185,2,185,3],[186,2,186,3],[129,0,129,5],[149,2,149,3],[157,2,157,3],[167,4,167,5],[14,1,14,8],[111,0,111,3],[156,2,156,3],[148,0,149,0],[145,0,145,5],[146,2,146,3],[136,0,136,7],[143,0,143,7],[148,1,149,1],[148,2,148,3],[155,2,155,3],[152,2,152,3],[67,0,67,6],[16,1,16,8],[17,0,18,0],[23,0,24,0],[4,1,4,2],[1,1,2,8],[174,0,174,1],[170,2,170,3],[171,2,171,3],[166,0,166,3],[138,0,138,7],[158,2,158,3],[147,2,147,3],[150,2,150,3],[151,2,151,3],[153,2,153,3],[167,2,167,3],[168,2,168,3],[8,1,8,8],[11,1,11,8]]}
[null,"oznaczenie sprawy:  1400/DW00/ZO/KZ/2023/0000090534 "]
[null,"ZAŁĄCZNIK NR 1 - FORMULARZ OFERTY"]
[]
[]
[]
[null,null,"(pieczęć wykonawcy)"]
[]
[null,"Ja, niżej podpisany (My niżej podpisani):"]
[]
[]
[null,"działając w imieniu i na rzecz:"]
[]
[]
[null,"Składam(y) iofertę, której przedmiotem jest:"]
[null,"Kompleksowa obsługa wydruku masowego dokumentacji wychodzącej dla GK ENEA"]
[]
[null,"Oferujemy wykonanie zamówienia zgodnie z opisem przedmiotu zamówienia:"]
[1,"ŁĄCZNA CENA NETTO OFERTY DLA: \nCzęść I wydruk w Wariancie I - okres 36 miesięcy\na) Dokumenty Rozliczeniowe, Dokumenty Windykacyjne, Drukarka Online, Pisma Informacyjne",{"$f":"SUM(H67,H90)","v":0}]
[null,"CENA NETTO SŁOWNIE: ",{"$f":"Slownie(C18)","v":"zero groszy"}]
[]
["1a","ŁĄCZNA CENA NETTO OFERTY DLA                                        Część I wydruk w Wariancie II- okres 36 miesięcy\na) Dokumenty Rozliczeniowe, Dokumenty Windykacyjne, Drukarka Online, Pisma Informacyjne",{"$f":"SUM(I68,I91)","v":0}]
[null,"CENA NETTO SŁOWNIE: ",{"$f":"Slownie(C21)","v":"zero groszy"}]
[]
[2,"ŁĄCZNA CENA NETTO OFERTY DLA                                        Część I – kolor– okres 36 miesięcy.\nb) Wydruk materiałów marketingowych/ pozostałe usługi",{"$f":"SUM(E103)","v":0}]
[null,"CENA NETTO SŁOWNIE: ",{"$f":"Slownie(C24)","v":"zero groszy"}]
[]
[3,"ŁĄCZNA CENA NETTO OFERTY DLA                                        Część I – czerń– okres 36 miesięcy.\nc) Wydruk materiałów marketingowych/ pozostałe usługi",{"$f":"SUM(E112)","v":0}]
[null,"CENA NETTO SŁOWNIE: ",{"$f":"Slownie(C27)","v":"zero groszy"}]
[]
[4,"ŁĄCZNA CENA NETTO OFERTY DLA                                        Część II - Wydruk kopert oraz dokumentów informacyjnych Wariant I  - okres 36 miesięcy.",{"$f":"SUM(E129)","v":0}]
[null,"CENA NETTO SŁOWNIE: ",{"$f":"Slownie(C30)","v":"zero groszy"}]
[]
["4a","ŁĄCZNA CENA NETTO OFERTY DLA                                        Część II - Wydruk kopert oraz dokumentów informacyjnych Wariant II - okres 36 miesięcy.",{"$f":"SUM(G130)","v":0}]
[null,"CENA NETTO SŁOWNIE: ",{"$f":"Slownie(C33)","v":"zero groszy"}]
[]
[null,"Podsumowanie wartości do kryterium oceny ofert numer 1 i 2:"]
[null,"1. CENA ZA WYDRUK W KOLORZE (Wariant I)                     (Część I i Część II - wydruk w Wariancie I)",{"$f":"SUM(C18,C24,C30)","v":0}]
[null,null,{"$f":"Slownie(C37)","v":"zero groszy"}]
[null,"2. CENA ZA WYDRUK W CZERNI (Wariant II)                      (Część I i Część II - wydruk w Wariancie II)",{"$f":"SUM(C21,C27,C33)","v":0}]
[null,null,{"$f":"Slownie(C39)","v":"zero groszy"}]
[]
[]
[]
["1.  Część I wydruk w Wariancie I i Wariancie II- okres 36 miesięcy\na) Dokumenty Rozliczeniowe, Dokumenty Windykacyjne, Drukarka Online, Pisma Informacyjne"]
["Lp.",null,"Obecny rodzaj koperty stosowany przez Zamawiającego","Proponowany rodzaj koperty zastosowany przez Wykonawcę do wyceny ","Szacowany wolumen ","Wydruk w Wariancie I - kolor (cena jednostkowa w PLN netto)","Wydruk w Wariancie II - czerń (cena jednostkowa w PLN netto)","Wydruk w Wariancie I - SUMA  (łączna wartość w PLN netto)","Wydruk w Wariancie II - SUMA  (łączna wartość w PLN netto)"]
["I. Ilość kartek - przesyłka polecona"]
["1.","Wydruk i zakopertowanie  1 kartki","C5",null,1647428.6484840189,null,null,{"$f":"ROUND(F47*E47,2)","v":0},{"$f":"ROUND(E47*G47,2)","v":0}]
["2.","Wydruk i zakopertowanie  2 kartek","C5",null,104826.23694476765,null,null,{"$f":"ROUND(F48*E48,2)","v":0},{"$f":"ROUND(E48*G48,2)","v":0}]
["3.","Wydruk i zakopertowanie  3 kartek","C5",null,106861.54999657793,null,null,0,0]
["4.","Wydruk i zakopertowanie  4  kartek","C5",null,22782.634658818697,null,null,0,0]
["5.","Wydruk i zakopertowanie  5  kartek","C5",null,6254.4792964205053,null,null,0,0]
["6.","Wydruk i zakopertowanie  6  kartek","C5",null,2777.9402504962013,null,null,0,0]
["7.","Wydruk i zakopertowanie  7 kartek","C5",null,2351.5139963041543,null,null,0,0]
["8.","Wydruk i zakopertowanie  8 kartek","C5",null,2311.5986585449318,null,null,0,0]
["9.","Wydruk i zakopertowanie  9 kartek","C5",null,1669.3385120799398,null,null,0,0]
["10.","Wydruk i zakopertowanie  10 kartek","C5",null,1120.0814454862775,null,null,0,0]
["11.","Wydruk i zakopertowanie  11 kartek","C5",null,626.93101088221204,null,null,0,0]
["12.","Wydruk i zakopertowanie  12 kartek","C5",null,21250.385531448908,null,null,0,0]
["13.","Wydruk i zakopertowanie  13 kartek","C5",null,281.29778933680103,null,null,0,0]
["14.","Wydruk i zakopertowanie  14 kartek","C5",null,970.17548422421464,null,null,0,0]
["15.","Wydruk i zakopertowanie  15 kartek","C4",null,372.37615495174867,null,null,0,0]
["16.","Wydruk i zakopertowanie  16 kartek","C4",null,585.42317432071729,null,null,0,0]
["17.","Wydruk i zakopertowanie  17 kartek","C4",null,1885.1724043528848,null,null,0,0]
["18.","Wydruk i zakopertowanie  18 kartek","C4",null,909.82129902128531,null,null,0,0]
["19.","Wydruk i zakopertowanie  19 kartek","C4",null,350.74293340633767,null,null,0,0]
["20.","Wydruk i zakopertowanie  od 20 kartek i powyżej","C4",null,59669.651974539731,null,null,0,0]
["1. ŁĄCZNA CENA NETTO OFERTY DLA Część I wydruk w Wariancie I - okres 36 miesięcy - przesyłki polecone\na) Dokumenty Rozliczeniowe, Dokumenty Windykacyjne, Drukarka Online, Pisma Informacyjne",null,null,null,null,null,null,{"$f":"ROUND(SUM(H47:H66),2)","v":0}]
["1a. ŁĄCZNA CENA NETTO OFERTY DLA  Część I wydruk w Wariancie II- okres 36 miesięcy - przesyłki polecone\na) Dokumenty Rozliczeniowe, Dokumenty Windykacyjne, Drukarka Online, Pisma Informacyjne",null,null,null,null,null,null,null,{"$f":"ROUND(SUM(I47:I66),2)","v":0}]
["II. Ilość kartek - przesyłka zwykła"]
["1.","Wydruk i zakopertowanie  1 kartki","C5",10,15484933.92210746,null,null,{"$f":"ROUND(F70*E70,2)","v":0},{"$f":"ROUND(E70*G70,2)","v":0}]
["2.","Wydruk i zakopertowanie  2 kartek","C5",10,12878420.200565817,null,null,{"$f":"ROUND(F71*E71,2)","v":0},{"$f":"ROUND(E71*G71,2)","v":0}]
["3.","Wydruk i zakopertowanie  3 kartek","C5",10,14533306.677541485,null,null,0,0]
["4.","Wydruk i zakopertowanie  4  kartek","C5",10,815086.62213677657,null,null,0,0]
["5.","Wydruk i zakopertowanie  5  kartek","C5",10,417318.87969535938,null,null,0,0]
["6.","Wydruk i zakopertowanie  6  kartek","C5",10,203855.36133452429,null,null,0,0]
["7.","Wydruk i zakopertowanie  7 kartek","C5",10,34408.347858574118,null,null,0,0]
["8.","Wydruk i zakopertowanie  8 kartek","C5",10,32066.394944978641,null,null,0,0]
["9.","Wydruk i zakopertowanie  9 kartek","C5",10,13207.372894943757,null,null,0,0]
["10.","Wydruk i zakopertowanie  10 kartek","C5",10,14851.333432038922,null,null,0,0]
["11.","Wydruk i zakopertowanie  11 kartek","C5",10,10140.83992760111,null,null,0,0]
["12.","Wydruk i zakopertowanie  12 kartek","C5",10,6040.1592808045534,null,null,0,0]
["13.","Wydruk i zakopertowanie  13 kartek","C5",10,4527.4772775256652,null,null,0,0]
["14.","Wydruk i zakopertowanie  14 kartek","C5",10,17264.820618479596,null,null,0,0]
["15.","Wydruk i zakopertowanie  15 kartek","C4",10,4798.7036211655468,null,null,0,0]
["16.","Wydruk i zakopertowanie  16 kartek","C4",10,9007.1443742533847,null,null,0,0]
["17.","Wydruk i zakopertowanie  17 kartek","C4",10,9207.0726540520045,null,null,0,0]
["18.","Wydruk i zakopertowanie  18 kartek","C4",10,3885.4846066759665,null,null,0,0]
["19.","Wydruk i zakopertowanie  19 kartek","C4",10,1970.5202900257509,null,null,0,0]
["20.","Wydruk i zakopertowanie  od 20 kartek i powyżej","C4",10,230560.66483745628,null,null,0,0]
["1. ŁĄCZNA CENA NETTO OFERTY DLA Część I wydruk w Wariancie I - okres 36 miesięcy - przesyłki zwykłe\na) Dokumenty Rozliczeniowe, Dokumenty Windykacyjne, Drukarka Online, Pisma Informacyjne",null,null,null,null,null,null,{"$f":"ROUND(SUM(H70:H89),2)","v":0}]
["1a. ŁĄCZNA CENA NETTO OFERTY DLA  Część I wydruk w Wariancie II- okres 36 miesięcy - przesyłki zwykłe\na) Dokumenty Rozliczeniowe, Dokumenty Windykacyjne, Drukarka Online, Pisma Informacyjne",null,null,null,null,null,null,null,{"$f":"ROUND(SUM(I70:I89),2)","v":0}]
[]
["2. Część I – kolor– okres 36 miesięcy.\nWydruk materiałów marketingowych/ pozostałe usługi"]
["L.p.","Rodzaj","Szacowany wolumen ","Wydruk w Wariancie I - kolor (cena jednostkowa w PLN netto)","Wydruk w Wariancie I - SUMA  (łączna wartość w PLN netto)"]
["1.","Ulotka informacyjna 1xDL dwustronna\nPapier: offset 90g\nDruk CMYK 4+4",5000000,null,{"$f":"ROUND(D95*C95,2)","v":0}]
["2.","Ulotka informacyjna 2xDL, składana do DL, dwustronna\nPapier: offset 90g\nDruk CMYK 4+4\nFalcowanie",2100000,null,{"$f":"ROUND(D96*C96,2)","v":0}]
["3.","Pismo/ ulotka A4 - papier biały, format A4 o gramaturze co\nnajmniej 80 g/m2, zadruk 4+4.",500000,null,0]
["4.","Koperty kurierskie\n250x350 mm, surowiec: karton GD2 300 gsm, specyfikacja: koperta z paskiem kleju, struną rozrywającą, otwierana po długim boku, nadruk: 4 + 0 CMYK + lakier dyspersyjny",139000,null,0]
["5.","Insertowanie ulotek do kopert",8100000,null,0]
["6.","Obsługa zwrotów pocztowych",225000,null,0]
["7.","Koszt godziny informatycznej",1500,null,0]
["8.","Pismo/ ulotka A4 - papier biały, format A4 o gramaturze co\nnajmniej 80 g/m2, zadruk 4+0.",500000,null,{"$f":"ROUND(D102*C102,2)","v":0}]
["2. ŁĄCZNA CENA NETTO OFERTY DLA Część I – kolor– okres 36 miesięcy.\nb) Wydruk materiałów marketingowych/ pozostałe usługi",null,null,null,{"$f":"ROUND(SUM(E95:E102),2)","v":0}]
[]
["3. Część I – czerń– okres 36 miesięcy. Wydruk materiałów marketingowych/ pozostałe usługi"]
["L.p.","Rodzaj","Szacowany wolumen ","Wydruk w Wariancie II - czerń","Wydruk w Wariancie II - SUMA"]
["1.","Pismo/ ulotka A4 - papier biały, format A4 o gramaturze co\nnajmniej 80 g/m2, zadruk 4+4.",500000,null,{"$f":"ROUND(D107*C107,2)","v":0}]
["2.","Insertowanie ulotek do kopert",1000000,null,{"$f":"ROUND(D108*C108,2)","v":0}]
["3.","Obsługa zwrotów pocztowych",225000,null,0]
["4.","Koszt godziny informatycznej",1500,null,0]
["5.","Pismo/ ulotka A4 - papier biały, format A4 o gramaturze co\nnajmniej 80 g/m2, zadruk 4+0.",500000,null,0]
["3. ŁĄCZNA CENA NETTO OFERTY DLA Część I – czerń– okres 36 miesięcy.\nc) Wydruk materiałów marketingowych/ pozostałe usługi",null,null,null,{"$f":"ROUND(SUM(E107:E111),2)","v":0}]
[]
["4. Część II - Wydruk kopert oraz dokumentów informacyjnych Wariant I i Wariant II - okres 36 miesięcy."]
["Lp","Koszty wydruku materiałów\ninformacyjnych","Szacowany wolumen ","Wydruk w Wariancie I - kolor (cena jednostkowa w PLN netto)","Wydruk w Wariancie I - SUMA  (łączna wartość w PLN netto)","Wydruk w Wariancie II - czerń (cena jednostkowa w PLN netto)","Wydruk w Wariancie II - SUMA  (łączna wartość w PLN netto)"]
["1.","Koperty do pakowania ręcznego, C5 z okienkiem (około 100 różnych\nadresów na kopertach)",900000,null,{"$f":"ROUND(C116*D116,2)","v":0},null,{"$f":"ROUND(F116*C116,2)","v":0}]
["2.","Koperty do pakowania ręcznego, C5 bez okienka (około 100 różnych\nadresów na kopertach)",180000,null,{"$f":"ROUND(C117*D117,2)","v":0},null,{"$f":"ROUND(F117*C117,2)","v":0}]
["3.","Koperty do pakowania ręcznego, C4 z okienkiem (około 100 różnych\nadresów na kopertach)",455000,null,0,null,0]
["4.","Koperty do pakowania ręcznego, C4 bez okienka (około 100 różnych\nadresów na kopertach)",160000,null,0,null,0]
["5.","Koperty zwrotne do pakowania ręcznego, C4 bez okienka (około\n100 różnych adresów na kopertach)",11000,null,0,null,0]
["6.","Koperty zwrotne do pakowania ręcznego, C5 bez okienka (około\n100 różnych adresów na kopertach)",10000,null,0,null,0]
["7.","Papier firmowy/ listownik ( około 50 różnych adresów), jednostronny,\nA4, w kolorze",30000,null,0,null,0]
["8.","Wnioski - kartki zadrukowane jednostronne, A4, w kolorze, 1\nkartka",1400000,null,0,null,0]
["9.","Wnioski - kartki zadrukowane dwustronne, A4, w kolorze, 1 kartka ",2000000,null,0,null,0]
["10.","Zszycie wniosków wielokartkowych",null,null,0,null,0]
["11.","Przygotowanie paczek kurierskich ",4200,null,0,null,0]
["12.","Książeczka A5 Zbiór Praw Konsumenta Energii Elektrycznej",200000,null,0,null,0]
["13.","Książeczka DL - TARYFA DLA ENERGII ELEKTRYCZNEJ DLA ODBIORCÓW Z GRUP TARYFOWYCH G\nObjętość: 8 stron + 4 strony okładka\nFormat 99x210mm\nKolorystyka okładka CMYK 4+0, papier kreda 200 g mat\nKolorystyka wnętrze CMYK 2+1, papier 90 g offset\nSzycie zeszytowe",300000,null,0,null,0]
["4. ŁĄCZNA CENA NETTO OFERTY DLA Część II - Wydruk kopert oraz dokumentów informacyjnych Wariant I  - okres 36 miesięcy.",null,null,null,{"$f":"ROUND(SUM(E116:E128),2)","v":0}]
["4a. ŁĄCZNA CENA NETTO OFERTY DLA Część II - Wydruk kopert oraz dokumentów informacyjnych Wariant II  - okres 36 miesięcy.",null,null,null,null,null,{"$f":"ROUND(SUM(G116:G128),2)","v":0}]
[]
["5. a) Informacje dodatkowe – Wariant I – dotyczy produkcji standardowej tj. faktur, wezwań itp."]
["Lp.","Usługa ","Wolumen","Koszt\njednostkowy C5*\n jednym\nokienkiem","Koszt\njednostkowy C5*\nz dwoma\nokienkami","Koszt\njednostkowy C4\n z jednym\nokienkiem","Koszt\njednostkowy C4\n z dwoma\nokienkami","Czas\nrealizacji\nzamówienia\n(dni robocze)"]
["1.","Zamówienie kopert\nz innym logotypem ","0-1000 "]
["2.","Zamówienie kopert\nz innym logotypem ","1001-5000 "]
["3.","Zamówienie kopert\nz innym logotypem ","5001-10000 "]
["*Należy uwzględnić format zaproponowany w 1.Część I wydruk w Wariancie I i Wariancie II- okres 36 miesięcy; a) Dokumenty Rozliczeniowe, Dokumenty Windykacyjne, Drukarka Online, Pisma Informacyjne; I. Ilość kartek - przesyłka polecona - pkt. 1. (Wydruk i zakopertowanie  1 kartki) oraz format zaproponowany w 1.Część I wydruk w Wariancie I i Wariancie II- okres 36 miesięcy; a) Dokumenty Rozliczeniowe, Dokumenty Windykacyjne, Drukarka Online, Pisma Informacyjne; I. Ilość kartek - przesyłka zwykła- pkt. 1. (Wydruk i zakopertowanie  1 kartki)"]
[]
["5.b) Informacje dodatkowe – Wariant II – dotyczy produkcji standardowej tj. faktur, wezwań itp."]
["Lp.","Usługa ","Wolumen","Koszt\njednostkowy C5*\n jednym\nokienkiem","Koszt\njednostkowy C5*\nz dwoma\nokienkami","Koszt\njednostkowy C4\n z jednym\nokienkiem","Koszt\njednostkowy C4\n z dwoma\nokienkami","Czas\nrealizacji\nzamówienia\n(dni robocze)"]
["1.","Zamówienie kopert z innym logotypem ","0-1000 "]
["2.","Zamówienie kopert z innym logotypem ","1001-5000 "]
["3.","Zamówienie kopert z innym logotypem","5001-10000 "]
["*Należy uwzględnić format zaproponowany w 1.Część I wydruk w Wariancie I i Wariancie II- okres 36 miesięcy; a) Dokumenty Rozliczeniowe, Dokumenty Windykacyjne, Drukarka Online, Pisma Informacyjne; I. Ilość kartek - przesyłka polecona - pkt. 1. (Wydruk i zakopertowanie  1 kartki) oraz format zaproponowany w 1.Część I wydruk w Wariancie I i Wariancie II- okres 36 miesięcy; a) Dokumenty Rozliczeniowe, Dokumenty Windykacyjne, Drukarka Online, Pisma Informacyjne; I. Ilość kartek - przesyłka zwykła- pkt. 1. (Wydruk i zakopertowanie  1 kartki)"]
[]
["6. Czas realizacji zleceń."]
["Lp.","Usługa","Czas maksymalny określony przez Zamawiajacego",null,"Termin proponowany przez Wykonawcę (uwaga: nie dłuszy niż czas maksymalny określony przez Zamawiajacego. Uwaga nie dotyczy pkt. 1)","Uwagi"]
["1.","Przetworzenie i przygotowanie do produkcji danych (dokumenty rozliczeniowe, windykacyjne, Drukarka Online)."]
["2.","Przygotowanie i przedstawienie do akceptacji Zamawiającego zwizualizowanych dokumentów - dotyczy wysyłki pism informacyjnych do Klientów na podstawie otrzymanej bazy, zleceń dodatkowych. ","4 dni roboczych od daty otrzymania bazy w przypadku akcji nowych bądź jednorazowych"]
[null,null,"2 dni robocze od daty otrzymania bazy w przypadku akcji cyklicznych"]
["3.","Przekazanie do nadania - dotyczy wysyłki pism informacyjnych do Klientów na podstawie otrzymanej bazy, zleceń dodatkowych. ","W kolejnym dniu roboczym po otrzymaniu od Zamawiającego akceptacji próbek."]
["4.","Naniesienie poprawek zgłoszonych przez Zamawiającego do zwizualizowanych dokumentów i ponowne przesłanie próbek - dotyczy wszystkich dokumentów oraz każdego zlecenia/ projektu.","1 dzień roboczy"]
["5.","Zmiana przekazów marketingowych na fakturach bez względu na ilość dedykowanych przekazów i zmiennych.","3 dni robocze od daty otrzymania zlecenia i projektu graficznego"]
["6.","Zmiana treści stałych (przypisy, dane teleadresowe, stałe komunikaty).","Przgotowanie wizuaizacji - 3 dni robocze.\nWdrożenie - kolejny dzień roboczy po otrzymaniu akceptacji przez Zamawiającego. "]
["7.","Przygotowanie wizualizacji kopert lub materiałów informacyjnych zamawianych w ramach Części II. ","3 dni robocze od momentu otrzymania poprawnego zestawienia."]
["8.","Realizacja zamówienia na materiały informacyjne i koperty.","21 dni roboczych od daty otrzymania akceptacji zwizualizowanych dokumentów. "]
["9.","Przygotowanie wizualizacji materiałów marketingowych (ulotki, koperty z dodatkowym nadrukiem).","3 dni robocze od momentu otrzymania wzoru."]
["10.","Realizacja zamówienia na materiały marketingowe (ulotki, koperty z dodatkowym nadrukiem).","7 dni roboczych od daty otrzymania akceptacji projektu graficznego."]
["11.","Przeniesienie produkcji do ośrodka zapasowego. ","48 godzin"]
[]
[]
[null,"WOLUMEN WYDRUKU do kryterium oceny ofert numer 3:"]
[null,"Rodzaj dokumentu","Wymagany minimalny wolumen zrealizowany w terminie D+0","Wolumen możliwy do zrealizowania w terminie D+0","Uwagi"]
[null,"Dokumenty rozliczeniowe, dokumenty windykacyjne, drukarka online, pisma informacyjne ","60 001 - 100 000"]
[]
[]
["5. Szacowany czas wdrożenia."]
["Lp.","Usługa","Czas maksymalny określony przez Zamawiajacego na wdrożenie",null,"Czas potrzebny na wdrożenie\n(w dniach roboczych)"]
["1.","Wdrożenie usługi wydruku dokumentów rozliczeniowych i windykacyjnych zgodnie z przekazaną specyfikacją.","Wykonawca zobowiązany jest do bycia w gotowości rozpoczęcia świadczenia usługi  w dniu 01.03.2024 r."]
["2.","Obsługa wydruku dokumentów przez Drukarkę Online  Załącznik nr 2, pkt. 1 ppkt. C)","Wykonawca zobowiązany jest do bycia w gotowości rozpoczęcia świadczenia usługi  w dniu 01.03.2024 r."]
["3.","Wdrożenie usługi przekazywania obrazów wydrukowanych dokumentów do wewnętrznego systemu GK Enea.","Wykonawca zobowiązany jest do bycia w gotowości rozpoczęcia świadczenia usługi  w dniu 01.03.2024 r."]
["4.","Wdrożenie systemu raportowania zgodnego z wymaganiami GK Enea.","Wykonawca zobowiązany jest do bycia w gotowości rozpoczęcia świadczenia usługi  w dniu 01.03.2024 r."]
[]
[]
["7. Istotne założenia przyjęte do wyceny zakresu prac przez Wykonawcę"]
["Lp.","Usługa"]
["1."]
["2."]
["3."]
["4."]
[]
[]
[]
[null,"Uwaga: na niebiesko zostały zaznaczone pola do uzupełnienia przez Wykonawców:"]
[]
[]
[null,"miejscowość i data","Pieczęć imienna i podpis przedstawiciela(i) Wykonawcy"]